bitfinex-derivatives/quotes_ETHF0:USTF0_20240905
["timestamp","ask_amount","ask_price","bid_price","bid_amount"]
[1725513818946,1.561,2411.9,2411.6,0.7489]
[1725513819133,1.561,2411.9,2411.6,1.03917]
[1725513819634,1.561,2411.9,2411.6,0.7489]
[1725513820240,1.561,2411.9,2411.6,1.03917]
[1725513820546,1.2,2411.9,2411.7,0.29026]
[1725513820741,4.111,2412.0,2411.7,0.29026]
[1725513820742,1.94632652,2412.1,2411.8,0.3723]
[1725513821144,2.23653652,2412.1,2411.8,0.3723]
[1725513822649,1.94632652,2412.1,2411.8,0.3723]
[1725513823052,0.00622652,2412.1,2411.8,0.3723]
[1725513823358,0.38042652,2412.1,2411.8,0.3723]
[1725513824257,0.38042652,2412.1,2411.8,0.66255]
[1725513824756,0.38042652,2412.1,2411.8,0.3723]
[1725513825454,0.38042652,2412.1,2411.8,0.66255]
[1725513825653,0.00622652,2412.1,2411.9,0.29023]
[1725513825854,0.00622652,2412.1,2412.0,0.3653]
[1725513826161,0.00622652,2412.1,2412.0,0.7417]
[1725513826655,0.00622652,2412.1,2412.0,1.03193]
[1725513827353,0.00622652,2412.1,2412.0,0.7417]
[1725513827855,0.00622652,2412.1,2412.0,1.03193]
[1725513829756,3.49795,2412.7,2412.3,0.29019]
[1725513829955,5.1475,2412.7,2412.4,0.7508]
[1725513830159,2.22985,2412.7,2412.4,0.7508]
[1725513830554,2.22985,2412.7,2412.4,1.1138]
[1725513830750,1.9397,2412.7,2412.4,1.1138]
[1725513831260,1.9397,2412.7,2412.4,1.40398]
[1725513831955,4.76396652,2412.8,2412.5,0.29016]
[1725513831956,0.00622652,2412.8,2412.5,0.29016]
[1725513832155,0.00622652,2412.8,2412.4,1.40397]
[1725513832350,0.00622652,2412.8,2412.5,0.29016]
[1725513832862,1.49014,2412.7,2412.4,1.1138]
[1725513833065,0.365,2412.6,2412.4,1.1138]
[1725513838160,1.2,2412.5,2412.3,0.00622652]
[1725513838670,1.49017,2412.5,2412.3,0.00622652]
[1725513839566,0.29018,2412.4,2412.3,0.00622652]
[1725513839767,3.49798,2412.4,2412.3,0.00622652]
[1725513840766,3.2078,2412.4,2412.3,0.00622652]
[1725513840970,1.49017,2412.5,2412.3,0.00622652]
[1725513842670,0.365,2412.6,2412.3,0.00622652]
[1725513842868,0.365,2412.6,2412.3,0.38772652]
[1725513843073,0.365,2412.6,2412.4,0.3853]
[1725513843372,0.365,2412.6,2412.4,0.7647]
[1725513844668,0.65516,2412.6,2412.4,0.3853]
[1725513844864,1.85516,2412.6,2412.4,0.3853]
[1725513845569,1.85516,2412.6,2412.3,0.00622652]
[1725513846168,0.29017,2412.5,2412.3,0.00622652]
[1725513846472,1.85516,2412.6,2412.3,0.00622652]
[1725513848374,0.00622652,2412.8,2412.4,0.29017]
[1725513848576,0.00622652,2412.8,2412.3,1.20622652]
[1725513848577,0.00622652,2412.8,2412.5,1.964]
[1725513848883,0.00622652,2412.8,2412.6,0.65894]
[1725513850170,0.00622652,2412.8,2412.6,0.3688]
[1725513851383,0.29635652,2412.8,2412.6,0.3688]
[1725513851674,3.88035652,2412.8,2412.6,0.3688]
[1725513851874,0.3836,2412.7,2412.6,0.3688]
[1725513854375,0.29015,2412.6,2412.5,0.3838]
[1725513854578,0.29015,2412.6,2412.3,0.79512652]
[1725513854579,1.2,2412.6,2412.3,0.79512652]
[1725513854772,1.87546,2412.6,2412.3,0.79512652]
[1725513856870,1.5853,2412.6,2412.3,0.79512652]
[1725513857073,1.87545,2412.6,2412.3,0.79512652]
[1725513857274,1.87545,2412.6,2412.3,1.15712652]
[1725513857475,0.29017,2412.5,2412.3,1.15712652]
[1725513857675,1.2,2412.4,2412.3,0.00622652]
[1725513857876,1.9423,2412.4,2412.3,0.00622652]
[1725513858183,1.5606,2412.4,2412.3,0.00622652]
[1725513860078,0.3606,2412.4,2412.3,0.00622652]
[1725513860277,1.5853,2412.6,2412.3,0.00622652]
[1725513860278,0.3853,2412.6,2412.3,0.00622652]
[1725513860483,1.06454,2412.7,2412.3,0.00622652]
[1725513860679,1.06454,2412.7,2412.3,0.74212652]
[1725513860883,1.06454,2412.7,2412.3,1.03231652]
[1725513860884,0.3927,2412.7,2412.3,1.03231652]
[1725513861072,0.3927,2412.7,2412.4,1.2]
[1725513861580,0.3927,2412.7,2412.5,0.3949]
[1725513862578,4.40736652,2412.8,2412.5,0.3949]
[1725513864683,4.11722652,2412.8,2412.5,0.3949]
[1725513865484,0.00622652,2412.8,2412.5,0.3949]
[1725513867282,0.00622652,2412.8,2412.7,0.29014]
[1725513867480,0.00622652,2412.8,2412.5,0.68506]
[1725513872485,0.29635652,2412.8,2412.5,0.3949]
[1725513872683,0.29635652,2412.8,2412.4,0.29017]
[1725513872884,0.3644,2412.7,2412.4,0.3601]
[1725513873088,0.65454,2412.7,2412.4,0.3601]
[1725513873286,0.392,2412.6,2412.4,0.3601]
[1725513874297,0.392,2412.6,2412.4,0.65028]
[1725513875192,0.392,2412.6,2412.4,0.3601]
[1725513881591,0.68216,2412.6,2412.4,0.3601]
[1725513882095,0.392,2412.6,2412.4,0.3601]
[1725513882293,0.29636652,2412.8,2412.4,0.3601]
[1725513884091,0.00622652,2412.8,2412.4,0.3601]
[1725513884287,0.00622652,2412.8,2412.5,0.29016]
[1725513885996,0.00622652,2412.8,2412.7,0.29014]
[1725513887492,0.00622652,2412.8,2412.5,1.19]
[1725513887493,0.00622652,2412.8,2412.6,0.29015]
[1725513887691,0.00622652,2412.8,2412.7,0.7479]
[1725513887892,0.00622652,2412.8,2412.7,1.1322]
[1725513889404,0.29015,2412.6,2412.3,0.00622652]
[1725513889599,0.3556,2412.5,2412.3,0.00622652]
[1725513889903,0.64825,2412.7,2412.3,1.48641652]
[1725513890200,1.00385,2412.7,2412.3,1.48641652]
[1725513890499,0.64575,2412.7,2412.3,1.48641652]
[1725513891605,0.00622652,2412.8,2412.6,1.48015]
[1725513891794,0.00622652,2412.8,2412.7,1.1113]
[1725513892198,0.00622652,2412.8,2412.7,0.7493]
[1725513892497,0.00622652,2412.8,2412.4,0.3767]
[1725513892498,0.29636652,2412.8,2412.4,0.3767]
[1725513892696,0.66266652,2412.8,2412.4,0.7342]
[1725513892905,0.66266652,2412.8,2412.4,1.1176]
[1725513892906,0.3758,2412.7,2412.4,1.1176]
[1725513894402,0.66594,2412.7,2412.4,1.1176]
[1725513894701,0.66595,2412.7,2412.4,1.1176]
[1725513896206,0.66594,2412.7,2412.4,1.1176]
[1725513897307,0.3758,2412.7,2412.4,1.1176]
[1725513900307,0.66594,2412.7,2412.4,1.1176]
[1725513901303,0.3758,2412.7,2412.4,1.1176]
[1725513901505,0.00622652,2412.8,2412.5,0.29016]
[1725513902308,0.00622652,2412.8,2412.4,1.40777]
[1725513904505,0.00622652,2412.8,2412.5,0.29016]
[1725513906116,3.21402652,2412.8,2412.5,0.29016]
[1725513906709,3.21402652,2412.8,2412.4,1.40777]
[1725513907114,3.50415652,2412.8,2412.4,1.40777]
[1725513907313,3.21402652,2412.8,2412.5,0.29016]
[1725513911419,3.21402652,2412.8,2412.7,0.29014]
[1725513911420,0.00622652,2412.8,2412.7,0.29014]
[1725513911720,0.00622652,2412.8,2412.7,0.67554]
[1725513912115,0.00622652,2412.8,2412.7,0.3854]
[1725513912421,3.50415652,2412.8,2412.7,0.3854]
[1725513912721,3.21402652,2412.8,2412.4,0.7409]
[1725513913027,2.21525,2412.7,2412.4,1.1263]
[1725513913324,0.7351,2412.7,2412.4,1.41648]
[1725513913510,4.40402652,2412.8,2412.4,1.1263]
[1725513913720,0.29016,2412.6,2412.4,1.1263]
[1725513913912,1.19,2412.7,2412.4,1.1263]
[1725513914122,0.3815,2412.5,2412.4,1.1263]
[1725513916424,3.5893,2412.5,2412.4,1.1263]
[1725513919425,3.87946,2412.5,2412.4,1.1263]
[1725513920327,3.5893,2412.5,2412.4,1.1263]
[1725513921232,3.21402652,2412.8,2412.4,1.41648]
[1725513921425,3.21402652,2412.8,2412.6,0.29015]
[1725513921830,3.21402652,2412.8,2412.7,0.3818]
[1725513922734,4.40402652,2412.8,2412.4,0.7409]
[1725513922926,0.3559,2412.7,2412.5,0.3796]
[1725513923420,0.11369508,2413.3,2412.9,0.29012]
[1725513923421,3.2078,2413.3,2412.9,0.29012]
[1725513923636,3.5637,2413.3,2413.0,1.1333]
[1725513923828,1.19,2413.2,2413.0,1.1333]
[1725513925229,0.29011,2413.0,2412.7,40.8]
[1725513925434,0.3674,2412.9,2412.7,0.3902]
[1725513925626,1.5574,2412.9,2412.7,0.3902]
[1725513927020,0.3674,2412.9,2412.7,0.3902]
[1725513927633,1.19,2413.0,2412.7,0.3902]
[1725513928331,1.84749,2413.2,2412.7,0.68034]
[1725513928627,0.29012,2412.9,2412.7,0.3902]
[1725513929630,4.68791,2413.0,2412.7,0.3902]
[1725513930630,0.29012,2412.9,2412.7,0.3902]
[1725513930934,0.65022,2412.9,2412.7,0.3902]
[1725513931123,1.38632,2412.9,2412.7,0.3902]
[1725513931839,1.0962,2412.9,2412.7,0.3902]
[1725513937444,0.3601,2412.9,2412.7,0.3902]
[1725513938636,1.48011,2413.0,2412.7,0.3902]
[1725513940941,0.7418,2413.2,2412.8,0.29012]
[1725513941138,1.03189,2413.2,2412.9,0.3676]
[1725513941642,1.03189,2413.2,2413.0,0.3857]
[1725513941847,0.7418,2413.2,2413.0,0.3857]
[1725513942145,1.03188,2413.2,2413.0,0.3857]
[1725513942542,7.7046,2413.3,2413.0,0.3857]
[1725513942731,1.48004,2413.6,2413.1,0.65849]
[1725513942939,1.86584,2413.6,2413.2,0.29008]
[1725513943141,1.86584,2413.6,2413.2,0.3676]
[1725513944340,1.86584,2413.6,2413.2,0.65768]
[1725513944341,1.5758,2413.6,2413.2,0.65768]
[1725513944846,0.3858,2413.6,2413.2,0.65768]
[1725513945040,1.5758,2413.6,2413.2,0.65768]
[1725513945643,1.19,2413.6,2413.3,0.29007]
[1725513945945,0.3584,2413.6,2413.3,0.29007]
[1725513946139,0.3584,2413.6,2413.4,0.3858]
[1725513946547,0.3584,2413.6,2413.5,0.365]
[1725513946845,4.5016,2413.6,2413.1,0.3684]
[1725513947053,1.19,2413.3,2413.1,0.3684]
[1725513947341,1.48007,2413.3,2413.1,0.3684]
[1725513947542,1.85307,2413.3,2413.1,0.3684]
[1725513949445,1.563,2413.3,2413.1,0.3684]
[1725513949839,1.563,2413.3,2413.2,0.3616]
[1725513950045,1.85307,2413.3,2413.2,0.3616]
[1725513950346,4.3978,2413.4,2413.2,0.3616]
[1725513951447,4.68786,2413.4,2413.2,0.3616]
[1725513951956,0.3672,2413.3,2413.2,0.3616]
[1725513954249,0.65727,2413.3,2413.2,0.3616]
[1725513954451,1.84727,2413.3,2413.2,0.3616]
[1725513954652,1.84727,2413.3,2412.9,0.3858]
[1725513954857,1.84727,2413.3,2413.0,0.7688]
[1725513958849,1.19,2413.3,2413.0,0.7688]
[1725513959056,1.19,2413.1,2413.0,0.7688]
[1725513959351,1.48009,2413.1,2413.0,0.7688]
[1725513959555,1.19,2413.1,2413.0,0.7688]
[1725513961151,1.19,2413.2,2413.0,0.7688]
[1725513961350,1.19,2413.3,2413.0,0.7688]
[1725513963056,1.48007,2413.3,2413.0,0.7688]
[1725513963250,1.19,2413.3,2413.0,0.7688]
[1725513965951,3.49786,2413.4,2413.0,0.7688]
[1725513965952,3.2078,2413.4,2413.0,2.2489]
[1725513966159,3.2078,2413.4,2413.0,1.9588]
[1725513966558,3.2078,2413.4,2413.0,2.2489]
[1725513967459,3.2078,2413.4,2413.1,0.29009]
[1725513967860,3.2078,2413.4,2413.0,2.2489]
[1725513968948,5.301,2413.5,2413.1,0.29009]
[1725513971355,5.59105,2413.5,2413.1,0.29009]
[1725513972559,1.48005,2413.5,2413.1,0.29009]
[1725513975962,0.29003,2413.6,2413.0,5.1666]
[1725513976166,1.48003,2413.6,2413.0,5.1666]
[1725513976364,1.19,2413.6,2413.3,0.29007]
[1725513976572,1.19,2413.6,2413.4,1.144]
[1725513976862,1.48003,2413.6,2413.4,1.144]
[1725513977467,1.19,2413.6,2413.4,1.144]
[1725513978268,3.2078,2414.1,2413.4,1.144]
[1725513978572,1.547,2413.9,2413.7,0.29002]
[1725513978767,1.547,2413.9,2413.8,0.7373]
[1725513980070,3.2078,2414.1,2413.8,0.7373]
[1725513980271,3.2078,2414.1,2413.8,2.5809]
[1725513980776,3.2078,2414.1,2413.8,1.1009]
[1725513981171,4.3978,2414.1,2413.8,1.1009]
[1725513983071,1.19,2414.1,2413.8,1.1009]
[1725513983481,0.28996,2414.3,2413.8,1.3909]
[1725513983482,1.19,2414.3,2413.8,1.3909]
[1725513983875,1.19,2414.3,2413.9,0.28999]
[1725513984880,1.19,2414.3,2413.8,1.3909]
[1725513985173,1.47995,2414.3,2413.8,1.1009]
[1725513988482,1.47995,2414.3,2413.8,1.39091]
[1725513988978,1.47995,2414.3,2413.8,1.1009]
[1725513989179,0.28996,2414.2,2413.8,1.1009]
[1725513989576,1.5681,2414.1,2413.8,0.7226]
[1725513989875,2.20989,2414.0,2413.6,3.9573]
[1725513990785,0.3781,2414.1,2413.6,5.1473]
[1725513991177,0.66808,2414.1,2413.6,5.43733]
[1725513993782,0.3781,2414.1,2413.6,5.1473]
[1725513994089,1.19,2414.2,2413.8,0.29]
[1725513994382,0.3762,2414.1,2413.9,0.7356]
[1725513994776,1.19,2414.2,2413.9,0.7356]
[1725513994976,1.5662,2414.2,2413.9,0.7356]
[1725513995382,1.85616,2414.2,2413.9,0.7356]
[1725513999184,0.28998,2414.1,2413.9,0.7356]
[1725513999982,1.85617,2414.2,2413.9,0.7356]
[1725514001783,0.28997,2414.1,2413.9,0.7356]
[1725514004388,0.28997,2414.1,2413.6,3.5719]
[1725514004585,0.28997,2414.1,2413.7,0.7457]
[1725514005691,1.85617,2414.2,2413.7,0.7457]
[1725514008782,0.29003,2413.6,2413.5,0.00622652]
[1725514008976,1.48003,2413.6,2413.5,0.00622652]
[1725514009582,1.19,2413.6,2413.5,0.00622652]
[1725514012019,1.48003,2413.6,2413.5,0.00622652]
[1725514012192,10.1432,2413.6,2412.8,1.0918]
[1725514012493,5.08836,2413.7,2412.8,1.0918]
[1725514012494,1.19,2413.2,2412.8,1.0918]
[1725514013187,1.1961831,2413.2,2412.8,2.2880135]
[1725514013598,1.1961831,2413.2,2412.8,2.5781435]
[1725514014988,1.1961831,2413.2,2412.8,2.2880135]
[1725514016087,1.1961831,2413.2,2412.8,2.5781435]
[1725514016485,1.1961831,2413.2,2412.8,2.2880135]
[1725514020201,1.4862631,2413.2,2412.8,2.2880135]
[1725514020791,1.1961831,2413.2,2412.8,2.5781435]
[1725514021192,0.0061831,2413.2,2412.8,2.5781435]
[1725514021398,0.0061831,2413.2,2412.8,2.2880135]
[1725514021590,0.0061831,2413.2,2413.0,3.4979]
[1725514021793,0.0061831,2413.2,2413.0,0.2901]
[1725514022891,0.0061831,2413.2,2413.1,0.67539]
[1725514023089,0.0061831,2413.2,2413.1,1.86539]
[1725514023293,0.0061831,2413.2,2413.1,6.00939]
[1725514027708,0.0061831,2413.2,2413.1,5.7193]
[1725514028003,0.0061831,2413.2,2413.1,6.00939]
[1725514029603,4.7923,2413.9,2413.1,5.7193]
[1725514029903,0.28999,2414.0,2413.6,1.19]
[1725514030100,0.28999,2414.0,2413.7,1.1386]
[1725514032805,4.7667,2414.1,2413.7,1.1386]
[1725514032806,5.05668,2414.1,2413.7,1.1386]
[1725514033007,1.84888,2414.1,2413.7,1.1386]
[1725514038019,1.5589,2414.1,2413.7,1.42862]
[1725514039106,1.19,2414.1,2413.7,2.61862]
[1725514039410,0.28997,2414.2,2413.7,2.61862]
[1725514039611,0.28997,2414.2,2413.8,0.29001]
[1725514040001,3.49775,2414.3,2413.9,0.28999]
[1725514040315,4.3978,2414.3,2414.0,0.3709]
[1725514040611,4.68775,2414.3,2414.0,0.3709]
[1725514041007,0.3578,2414.2,2414.0,0.3709]
[1725514042210,1.5478,2414.2,2414.0,0.3709]
[1725514042716,0.3879,2414.1,2414.0,0.3709]
[1725514045814,0.3879,2414.1,2413.9,0.7319]
[1725514046020,0.29002,2413.8,2413.2,4.01930119]
[1725514046224,4.3978,2414.0,2413.3,1.42766]
[1725514046225,1.558,2413.7,2413.3,1.42766]
[1725514046514,0.368,2413.7,2413.3,1.42766]
[1725514050418,0.368,2413.7,2413.3,2.61766]
[1725514054019,0.65802,2413.7,2413.3,2.61766]
[1725514054420,0.29004,2413.6,2413.3,1.1376]
[1725514054615,2.60103,2413.7,2413.3,1.1376]
[1725514056017,2.311,2413.7,2413.3,1.1376]
[1725514056417,2.60102,2413.7,2413.3,1.1376]
[1725514057515,2.311,2413.7,2413.3,1.1376]
[1725514057718,1.19,2413.5,2413.3,1.1376]
[1725514058117,0.3927,2413.4,2413.3,1.1376]
[1725514058519,0.3927,2413.4,2413.0,1.4801]
[1725514058715,0.3927,2413.4,2413.1,0.393]
[1725514059526,0.3927,2413.4,2413.1,0.68309]
[1725514062319,0.3927,2413.4,2413.2,0.29008]
[1725514062629,0.3927,2413.4,2413.2,1.19]
[1725514062825,0.65844,2413.6,2413.2,1.19]
[1725514063033,0.65844,2413.6,2413.2,1.48008]
[1725514064332,4.111,2413.8,2413.5,1.48004]
[1725514064536,4.111,2413.8,2413.6,1.1128]
[1725514067724,1.8484,2413.9,2413.6,1.1128]
[1725514068525,1.5584,2413.9,2413.6,1.1128]
[1725514070833,0.3684,2413.9,2413.6,1.1128]
[1725514071037,5.41889,2414.0,2413.6,1.1128]
[1725514073629,2.21109,2414.0,2413.6,1.1128]
[1725514074740,1.9211,2414.0,2413.6,1.1128]
[1725514075635,2.21109,2414.0,2413.6,1.1128]
[1725514076440,1.9211,2414.0,2413.6,1.1128]
[1725514077234,2.21109,2414.0,2413.6,1.1128]
[1725514079033,3.5949,2414.1,2413.6,1.1128]
[1725514079232,3.5949,2414.1,2413.8,0.29]
[1725514079433,3.2078,2414.1,2413.8,0.29]
[1725514079638,3.5757,2414.1,2413.9,0.3691]
[1725514080643,5.62239,2414.0,2413.6,0.7542]
[1725514080842,4.3978,2413.8,2413.6,0.7542]
[1725514081237,0.3716,2413.7,2413.6,0.7542]
[1725514081537,1.5616,2413.7,2413.3,0.66016]
[1725514081847,0.3716,2413.7,2413.3,0.66016]
[1725514082640,0.3716,2413.7,2413.4,0.29005]
[1725514083742,0.3716,2413.7,2413.5,0.3882]
[1725514084343,0.3716,2413.7,2413.6,0.3721]
[1725514093849,0.3716,2413.7,2413.5,0.3882]
[1725514094051,0.66162,2413.7,2413.5,0.3882]
[1725514102249,0.3716,2413.7,2413.5,0.3882]
[1725514107048,1.84621,2413.8,2413.5,0.3882]
[1725514107554,1.19,2413.8,2413.5,0.3882]
[1725514107758,3.8869,2413.9,2413.5,0.67824]
[1725514107948,3.5969,2413.9,2413.5,0.67824]
[1725514108150,3.2078,2413.9,2413.5,1.86824]
[1725514109155,0.3606,2413.8,2413.5,1.86824]
[1725514109850,0.3606,2413.8,2413.5,1.5782]
[1725514110657,0.3606,2413.8,2413.5,0.3882]
[1725514115061,1.19,2413.7,2413.3,3.5782]
[1725514115245,1.9309,2413.7,2413.4,0.3898]
[1725514116349,2.22092,2413.7,2413.4,0.3898]
[1725514117861,1.9309,2413.7,2413.4,0.3898]
[1725514118052,0.3836,2413.7,2413.4,0.3898]
[1725514119347,1.5506,2413.8,2413.4,0.67986]
[1725514119551,1.84061,2413.8,2413.4,0.3898]
[1725514119752,3.2078,2413.9,2413.4,0.67985]
[1725514119753,3.4978,2413.9,2413.4,0.67985]
[1725514120052,4.6878,2413.9,2413.4,0.67985]
[1725514121157,1.19,2413.7,2413.4,0.3898]
[1725514121557,1.5609,2413.7,2413.4,0.3898]
[1725514122262,1.85093,2413.7,2413.4,0.3898]
[1725514122557,1.5609,2413.7,2413.4,0.3898]
[1725514126465,1.85092,2413.7,2413.4,0.3898]
[1725514126661,0.29004,2413.6,2413.4,0.3898]
[1725514127762,1.85093,2413.7,2413.4,0.3898]
[1725514128664,5.05873,2413.7,2413.4,0.3898]
[1725514129756,0.29003,2413.6,2413.4,0.3898]
[1725514131465,5.05873,2413.7,2413.4,0.3898]
[1725514132960,1.85093,2413.7,2413.4,0.3898]
[1725514133266,5.05873,2413.7,2413.4,0.3898]
[1725514133560,4.7687,2413.7,2413.4,0.3898]
[1725514135166,3.5787,2413.7,2413.4,0.3898]
[1725514138872,3.2078,2413.7,2413.4,0.3898]
[1725514139064,3.2078,2413.7,2413.4,0.67985]
[1725514139574,3.2078,2413.7,2413.5,0.29004]
[1725514139771,4.111,2414.2,2413.9,0.28999]
[1725514139962,4.111,2414.2,2414.0,1.15]
[1725514140373,4.40096,2414.2,2414.0,1.15]
[1725514140563,4.111,2414.2,2414.0,1.15]
[1725514141471,0.3838,2414.1,2414.0,1.15]
[1725514143268,0.3838,2414.1,2413.7,3.2078]
[1725514143573,0.3838,2414.1,2413.8,0.3558]
[1725514147573,0.67377,2414.1,2413.8,0.3558]
[1725514148070,1.86377,2414.1,2413.8,0.3558]
[1725514148472,1.5738,2414.1,2413.8,0.3558]
[1725514148773,1.86377,2414.1,2413.8,0.3558]
[1725514149279,1.5738,2414.1,2413.8,0.3558]
[1725514150174,0.3838,2414.1,2413.8,0.3558]
[1725514150772,4.111,2414.2,2413.8,0.64581]
[1725514150974,0.3718,2414.2,2413.8,0.64581]
[1725514154687,0.3718,2414.2,2413.8,0.85642269]
[1725514156294,0.3718,2414.2,2413.8,41.65642269]
[1725514156490,0.3718,2414.2,2413.8,41.44581]
[1725514157393,0.66176,2414.2,2413.8,41.44581]
[1725514157589,0.28997,2414.1,2413.8,41.1558]
[1725514157792,0.66177,2414.2,2413.8,0.3558]
[1725514157992,0.28998,2414.1,2413.8,0.3558]
[1725514158498,0.3718,2414.2,2413.8,0.3558]
[1725514158499,0.66177,2414.2,2413.8,0.3558]
[1725514160997,0.3718,2414.2,2413.8,0.64581]
[1725514161390,0.66177,2414.2,2413.8,0.3558]
[1725514161801,0.66177,2414.2,2413.8,0.64581]
[1725514162901,0.28997,2414.2,2413.8,0.64581]
[1725514164104,0.28995,2414.3,2413.9,1.47999]
[1725514164804,0.28995,2414.3,2413.9,42.27999]
[1725514165198,0.28995,2414.3,2413.9,1.47999]
[1725514166408,2.64534,2414.4,2413.9,1.47999]
[1725514166709,0.28995,2414.3,2413.9,1.47999]
[1725514171314,0.28995,2414.3,2414.0,0.28998]
[1725514171510,0.28995,2414.3,2414.1,0.7554]
[1725514171809,0.28995,2414.3,2414.1,1.1176]
[1725514172199,1.47994,2414.4,2414.1,1.1176]
[1725514172798,4.111,2414.8,2414.2,1.19]
[1725514173011,4.4838,2414.8,2414.4,1.19]
[1725514173207,4.4838,2414.8,2414.5,1.0891]
[1725514173406,4.77369,2414.8,2414.5,1.0891]
[1725514173708,5.2336,2414.8,2414.5,1.0891]
[1725514175209,5.52349,2414.8,2414.5,1.0891]
[1725514175515,1.19,2414.7,2414.5,1.0891]
[1725514177717,4.62029,2414.8,2414.5,1.0891]
[1725514178021,5.81029,2414.8,2414.5,1.0891]
[1725514191820,4.62029,2414.8,2414.5,1.0891]
[1725514194028,1.19,2414.6,2414.0,0.0062135]
[1725514194326,3.2078,2414.4,2414.0,0.7505135]
[1725514194719,3.9666,2414.4,2414.0,0.7505135]
[1725514195029,4.25654,2414.4,2414.0,0.7505135]
[1725514195526,0.28995,2414.3,2414.0,0.7505135]
[1725514195729,1.47995,2414.3,2414.0,0.7505135]
[1725514196036,0.3803,2414.2,2414.0,0.7505135]
[1725514196428,0.67027,2414.2,2414.0,0.7505135]
[1725514196625,0.28997,2414.1,2414.0,0.0062135]
[1725514198825,0.28997,2414.1,2413.5,1.37583515]
[1725514198826,0.29001,2413.8,2413.4,2.27579515]
[1725514199028,1.48001,2413.8,2413.5,1.1591]
[1725514199232,0.373,2413.7,2413.5,1.1591]
[1725514199534,0.66302,2413.7,2413.5,1.1591]
[1725514199832,0.373,2413.7,2413.5,1.1591]
[1725514200624,0.3751,2414.0,2413.6,1.19]
[1725514200835,4.111,2414.1,2413.8,1.19]
[1725514201129,4.111,2414.1,2413.9,1.1187]
[1725514201330,0.3792135,2414.2,2413.9,1.1187]
[1725514201523,0.6691835,2414.2,2413.9,1.1187]
[1725514202334,1.19,2414.0,2413.4,0.0062135]
[1725514202530,1.19,2413.7,2413.4,0.3816135]
[1725514202731,3.2078,2413.8,2413.4,0.0062135]
[1725514202732,1.48004,2413.5,2413.4,0.0062135]
[1725514203035,0.29008,2413.2,2412.7,3.2078]
[1725514203236,1.19,2413.1,2412.7,4.3284]
[1725514204033,1.19,2413.1,2412.7,4.3346135]
[1725514204437,1.19,2413.1,2412.7,1.1268135]
[1725514204636,1.5667,2413.1,2412.7,1.1268135]
[1725514204833,3.2078,2413.2,2412.7,2.3168135]
[1725514204834,4.3978,2413.2,2412.7,2.3168135]
[1725514205033,0.29007,2413.3,2412.9,1.19]
[1725514207041,2.60906,2413.4,2412.9,1.19]
[1725514208236,1.129,2413.4,2412.9,1.19]
[1725514208630,1.41906,2413.4,2412.9,1.19]
[1725514208941,4.68787,2413.3,2412.9,1.19]
[1725514209338,4.68787,2413.3,2412.7,2.3168135]
[1725514209744,4.68787,2413.3,2412.7,1.1268135]
[1725514210041,4.68787,2413.3,2412.7,2.3168135]
[1725514210542,4.68787,2413.3,2412.7,2.6069535]
[1725514211836,4.68787,2413.3,2412.8,0.29013]
[1725514211837,4.3978,2413.3,2412.8,0.29013]
[1725514212441,4.3978,2413.3,2412.7,2.6069435]
[1725514212832,4.68787,2413.3,2412.7,2.6069435]
[1725514213137,4.3978,2413.3,2412.7,2.6069435]
[1725514213444,4.68787,2413.3,2412.7,2.6069435]
[1725514214641,0.29008,2413.2,2412.7,2.3168135]
[1725514214936,1.48008,2413.2,2412.7,2.3168135]
[1725514215439,0.29009,2413.1,2412.7,2.3168135]
[1725514215836,0.3692,2413.0,2412.7,2.3168135]
[1725514218242,0.3692,2413.0,2412.9,1.19]
[1725514218537,0.3692,2413.0,2412.7,1.1268135]
[1725514218538,0.3692,2413.0,2412.7,2.3168135]
[1725514220642,0.29009,2413.1,2412.7,2.3168135]
[1725514224443,0.29011,2413.0,2412.7,2.3168135]
[1725514224653,0.2901,2413.1,2412.7,2.3168135]
[1725514224947,0.29011,2413.0,2412.7,1.1268135]
[1725514225544,1.19,2412.9,2412.7,0.3816135]
[1725514225858,1.84832,2412.9,2412.7,0.3816135]
[1725514226150,0.29013,2412.8,2412.7,0.3816135]
[1725514226446,0.29013,2412.8,2412.7,41.1816135]
[1725514226652,0.29013,2412.8,2412.7,0.0062135]
[1725514226849,5.62493,2412.8,2412.7,0.0062135]
[1725514227639,11.3348,2412.8,2411.6,0.29027]
[1725514227842,1.35454745,2412.9,2411.7,1.1244]
[1725514227843,1.19,2412.0,2411.7,1.1244]
[1725514228558,1.48022,2412.1,2411.7,1.1244]
[1725514228860,0.3848,2412.2,2411.8,1.19]
[1725514228861,3.5926,2412.2,2411.8,1.19]
[1725514229148,3.2078,2412.2,2411.9,0.3809]
[1725514229351,3.2078,2412.2,2411.9,1.5709]
[1725514230056,3.2078,2412.2,2411.9,0.3809]
[1725514230851,0.29019,2412.3,2411.9,0.3809]
[1725514231156,0.29018,2412.4,2411.9,0.3809]
[1725514231550,10.86697,2412.5,2411.9,0.3809]
[1725514231753,0.29018,2412.4,2411.9,0.3809]
[1725514234959,10.86697,2412.5,2411.9,0.3809]
[1725514235259,0.29018,2412.4,2411.9,0.3809]
[1725514237859,10.86697,2412.5,2411.9,0.3809]
[1725514238054,7.3188,2412.5,2412.0,0.29022]
[1725514238261,7.3188,2412.5,2412.1,0.3882]
[1725514238463,7.3188,2412.5,2412.2,0.386]
[1725514238656,3.2078,2412.5,2412.2,0.386]
[1725514238847,3.2078,2412.5,2412.3,0.3704]
[1725514243363,6.0778,2412.5,2412.3,0.3704]